[Event "*** Titled Tuesday Blitz"]
[Site "Chess.com"]
[Date "2019.01.01"]
[Round "6"]
[White "mitrabhaa"]
[Black "NTBT_DHS"]
[Result "1-0"]
[WhiteElo "2592"]
[BlackElo "2687"]
[TimeControl "180+2"]
[EndTime "14:25:31 PST"]
[Termination "mitrabhaa won by resignation"]

1. Nf3 {[%clk 0:03:01.8]} 1... g6 {[%clk 0:03:01.1]} 2. g3 {[%clk 0:03:03]} 2...
Bg7 {[%clk 0:03:03]} 3. Bg2 {[%clk 0:03:04.5]} 3... d6 {[%clk 0:03:04.4]} 4. O-O
{[%clk 0:03:03.4]} 4... Nf6 {[%clk 0:03:05.3]} 5. d4 {[%clk 0:03:02.6]} 5... O-O
{[%clk 0:03:07.2]} 6. a4 {[%clk 0:03:04.2]} 6... Na6 {[%clk 0:03:08.1]} 7. a5
{[%clk 0:03:05.2]} 7... c5 {[%clk 0:03:08.9]} 8. dxc5 {[%clk 0:03:05.9]} 8...
Nxc5 {[%clk 0:03:10.8]} 9. c3 {[%clk 0:03:07.5]} 9... Qc7 {[%clk 0:02:52.8]} 10.
Nd4 {[%clk 0:03:03.8]} 10... a6 {[%clk 0:02:51.9]} 11. Nd2 {[%clk 0:03:01.1]}
11... e5 {[%clk 0:02:52.1]} 12. Nc2 {[%clk 0:03:01.5]} 12... Be6 {[%clk
0:02:44.5]} 13. Nb4 {[%clk 0:03:02.2]} 13... Rad8 {[%clk 0:02:39.5]} 14. Nf3
{[%clk 0:02:59.3]} 14... h6 {[%clk 0:02:28.8]} 15. Ra3 {[%clk 0:02:59.3]} 15...
Rfe8 {[%clk 0:02:16.5]} 16. Be3 {[%clk 0:02:59.1]} 16... Ng4 {[%clk 0:02:12.8]}
17. Bd2 {[%clk 0:02:57.1]} 17... d5 {[%clk 0:02:13]} 18. h3 {[%clk 0:02:57.7]}
18... Nf6 {[%clk 0:02:12.9]} 19. Be3 {[%clk 0:02:59.3]} 19... d4 {[%clk
0:01:41]} 20. cxd4 {[%clk 0:02:53.2]} 20... exd4 {[%clk 0:01:42.9]} 21. Nxd4
{[%clk 0:02:52.8]} 21... Nfe4 {[%clk 0:01:34]} 22. Nxe6 {[%clk 0:02:50.1]} 22...
Rxe6 {[%clk 0:01:35.9]} 23. Qb1 {[%clk 0:02:50.1]} 23... Nxg3 {[%clk 0:01:29.9]}
24. fxg3 {[%clk 0:02:43.3]} 24... Rxe3 {[%clk 0:01:31]} 25. Rxe3 {[%clk
0:02:41.3]} 25... Bd4 {[%clk 0:01:31.9]} 26. Rf3 {[%clk 0:02:36.5]} 26... Nb3
{[%clk 0:01:08.2]} 27. Qc2 {[%clk 0:02:31.7]} 27... Qxc2 {[%clk 0:00:30.5]} 28.
Nxc2 {[%clk 0:02:32.5]} 28... Bxe3+ {[%clk 0:00:27.9]} 29. Rxe3 {[%clk
0:02:30.6]} 29... Nxa5 {[%clk 0:00:29.8]} 30. Re7 {[%clk 0:02:30.6]} 30... b5
{[%clk 0:00:28.9]} 31. Nb4 {[%clk 0:02:29.6]} 31... Nc4 {[%clk 0:00:29.1]} 32.
b3 {[%clk 0:02:25.1]} 32... Nd2 {[%clk 0:00:25.2]} 33. Nxa6 {[%clk 0:02:25.8]}
33... Nxb3 {[%clk 0:00:26]} 34. Nc7 {[%clk 0:02:27.1]} 34... Nd4 {[%clk
0:00:26.3]} 35. Bd5 {[%clk 0:02:26.1]} 35... Rf8 {[%clk 0:00:22.4]} 36. e4
{[%clk 0:02:25.4]} 36... b4 {[%clk 0:00:21.4]} 37. Ne8 {[%clk 0:02:25.1]} 37...
b3 {[%clk 0:00:18.3]} 38. Nd6 {[%clk 0:02:26.6]} 38... b2 {[%clk 0:00:18.9]} 39.
Rb7 {[%clk 0:02:27.2]} 39... Rd8 {[%clk 0:00:10.1]} 40. Nxf7 {[%clk 0:02:26.8]}
40... Ra8 {[%clk 0:00:02.8]} 41. Ne5+ {[%clk 0:02:23]} 41... Kf8 {[%clk
0:00:01.4]} 42. Nxg6+ {[%clk 0:02:19.7]} 42... Ke8 {[%clk 0:00:02.7]} 43. Rxb2
{[%clk 0:02:20.3]} 43... Ra3 {[%clk 0:00:03.2]} 44. Kg2 {[%clk 0:02:18.8]} 44...
Kd7 {[%clk 0:00:03.2]} 45. Nh4 {[%clk 0:02:19.5]} 45... Kd6 {[%clk 0:00:04.1]}
46. Rd2 {[%clk 0:02:18]} 46... Kc5 {[%clk 0:00:03.7]} 47. Nf5 {[%clk 0:02:19.1]}
47... Nb3 {[%clk 0:00:04.2]} 48. Bxb3 {[%clk 0:02:19.3]} 48... Rxb3 {[%clk
0:00:06.1]} 49. Nxh6 {[%clk 0:02:20.6]} 1-0

[Event "*** Titled Tuesday Blitz"]
[Site "Chess.com"]
[Date "2019.01.01"]
[Round "6"]
[White "Martins-BR"]
[Black "Berardino"]
[Result "0-1"]
[WhiteElo "2221"]
[BlackElo "2412"]
[TimeControl "180+2"]
[EndTime "14:25:32 PST"]
[Termination "Berardino won by checkmate"]

1. e4 {[%clk 0:03:01.9]} 1... c5 {[%clk 0:02:55]} 2. f4 {[%clk 0:03:02.2]} 2...
d5 {[%clk 0:02:55.6]} 3. exd5 {[%clk 0:03:02.4]} 3... Nf6 {[%clk 0:02:56.3]} 4.
Bb5+ {[%clk 0:03:02.9]} 4... Bd7 {[%clk 0:02:56.2]} 5. Bxd7+ {[%clk 0:03:03.2]}
5... Qxd7 {[%clk 0:02:54.5]} 6. c4 {[%clk 0:03:04]} 6... e6 {[%clk 0:02:52]} 7.
dxe6 {[%clk 0:03:03.4]} 7... fxe6 {[%clk 0:02:49.1]} 8. Nf3 {[%clk 0:03:02.9]}
8... Nc6 {[%clk 0:02:48.9]} 9. O-O {[%clk 0:03:03.2]} 9... O-O-O {[%clk
0:02:49.4]} 10. Nc3 {[%clk 0:02:57.5]} 10... Bd6 {[%clk 0:02:25.2]} 11. g3
{[%clk 0:02:49.3]} 11... e5 {[%clk 0:02:23]} 12. fxe5 {[%clk 0:02:31.1]} 12...
Nxe5 {[%clk 0:02:24.9]} 13. Nb5 {[%clk 0:02:25.4]} 13... Nxc4 {[%clk 0:01:58.4]}
14. Qa4 {[%clk 0:02:19.9]} 14... a6 {[%clk 0:01:59.4]} 15. Na7+ {[%clk
0:02:15.5]} 15... Kb8 {[%clk 0:01:58.5]} 16. Qxc4 {[%clk 0:02:15.4]} 16... Kxa7
{[%clk 0:01:59]} 17. d4 {[%clk 0:02:10.5]} 17... Rc8 {[%clk 0:01:13.4]} 18. dxc5
{[%clk 0:02:10.1]} 18... Bxc5+ {[%clk 0:01:13.5]} 19. Kh1 {[%clk 0:02:09.8]}
19... Qh3 {[%clk 0:00:59.4]} 20. Bf4 {[%clk 0:02:02.5]} 20... Ng4 {[%clk
0:00:58.9]} 21. Qe2 {[%clk 0:01:57.3]} 21... Rhe8 {[%clk 0:00:49.8]} 22. Qg2
{[%clk 0:01:45.3]} 22... Qxg2+ {[%clk 0:00:47.4]} 23. Kxg2 {[%clk 0:01:44]}
23... Re2+ {[%clk 0:00:49.3]} 24. Kh3 {[%clk 0:01:39.4]} 24... Nf2+ {[%clk
0:00:49.8]} 25. Kh4 {[%clk 0:01:30.9]} 25... Be7+ {[%clk 0:00:42.8]} 26. Bg5
{[%clk 0:01:29.9]} 26... Rc4+ {[%clk 0:00:31.1]} 27. Kh5 {[%clk 0:01:27.9]}
27... Bf8 {[%clk 0:00:27.4]} 28. Bd8 {[%clk 0:00:16.8]} 28... g6+ {[%clk
0:00:18.7]} 29. Kg5 {[%clk 0:00:17.5]} 29... Bg7 {[%clk 0:00:19.5]} 30. Rxf2
{[%clk 0:00:15.7]} 30... Rxf2 {[%clk 0:00:21.4]} 31. Ne5 {[%clk 0:00:12.2]}
31... Rf5# {[%clk 0:00:22.3]} 0-1

[Event "*** Titled Tuesday Blitz"]
[Site "Chess.com"]
[Date "2019.01.01"]
[Round "6"]
[White "Mikhail_Golubev"]
[Black "swisspower96"]
[Result "1-0"]
[WhiteElo "2509"]
[BlackElo "2527"]
[TimeControl "180+2"]
[EndTime "14:25:37 PST"]
[Termination "Mikhail_Golubev won by resignation"]

1. e4 {[%clk 0:03:01.9]} 1... c5 {[%clk 0:02:57]} 2. Nf3 {[%clk 0:03:01.4]} 2...
d6 {[%clk 0:02:55.7]} 3. d4 {[%clk 0:03:02.1]} 3... cxd4 {[%clk 0:02:57.6]} 4.
Nxd4 {[%clk 0:03:02.8]} 4... Bd7 {[%clk 0:02:59.1]} 5. Nc3 {[%clk 0:03:01.3]}
5... a6 {[%clk 0:02:58.8]} 6. Bc4 {[%clk 0:02:51]} 6... e6 {[%clk 0:02:55.4]} 7.
O-O {[%clk 0:02:46.8]} 7... Ne7 {[%clk 0:02:51.6]} 8. a4 {[%clk 0:02:42.2]} 8...
Nbc6 {[%clk 0:02:51.9]} 9. Be3 {[%clk 0:02:30.9]} 9... Rc8 {[%clk 0:02:52.5]}
10. Ba2 {[%clk 0:02:31.3]} 10... Nxd4 {[%clk 0:02:46]} 11. Qxd4 {[%clk
0:02:31.9]} 11... Nc6 {[%clk 0:02:47.5]} 12. Qd2 {[%clk 0:02:32.6]} 12... Be7
{[%clk 0:02:48.8]} 13. f4 {[%clk 0:02:31.3]} 13... O-O {[%clk 0:02:49.2]} 14.
Rad1 {[%clk 0:02:22.6]} 14... Qa5 {[%clk 0:02:49.4]} 15. Kh1 {[%clk 0:02:04.9]}
15... Rfd8 {[%clk 0:02:41.5]} 16. f5 {[%clk 0:02:01.4]} 16... Ne5 {[%clk
0:02:42.2]} 17. fxe6 {[%clk 0:01:57.1]} 17... Bxe6 {[%clk 0:02:39.2]} 18. Bxe6
{[%clk 0:01:56.7]} 18... fxe6 {[%clk 0:02:33.1]} 19. Nd5 {[%clk 0:01:55.3]}
19... Qxd2 {[%clk 0:02:32.4]} 20. Nxe7+ {[%clk 0:01:55.4]} 20... Kh8 {[%clk
0:02:33.8]} 21. Bxd2 {[%clk 0:01:44.5]} 21... Rxc2 {[%clk 0:02:34.9]} 22. Bc3
{[%clk 0:01:42.9]} 22... Ng4 {[%clk 0:02:36.2]} 23. Rf7 {[%clk 0:01:29.2]} 23...
e5 {[%clk 0:02:33.2]} 24. Rdf1 {[%clk 0:01:11.3]} 24... h5 {[%clk 0:02:29.6]}
25. h3 {[%clk 0:00:55.1]} 25... Nf6 {[%clk 0:02:30.3]} 26. Nd5 {[%clk
0:00:49.8]} 26... Nxe4 {[%clk 0:02:30.7]} 27. Kh2 {[%clk 0:00:37.5]} 27... Nxc3
{[%clk 0:02:17.2]} 28. bxc3 {[%clk 0:00:38.2]} 28... Rd2 {[%clk 0:02:18.7]} 29.
Ne7 {[%clk 0:00:39]} 29... d5 {[%clk 0:02:12.7]} 30. R1f5 {[%clk 0:00:33]} 30...
Rd6 {[%clk 0:02:07]} 31. Rxh5+ {[%clk 0:00:27.5]} 31... Rh6 {[%clk 0:02:08]} 32.
Rxh6+ {[%clk 0:00:27.6]} 32... gxh6 {[%clk 0:02:09.4]} 33. Ng6+ {[%clk
0:00:25.7]} 33... Kg8 {[%clk 0:02:10.7]} 34. Nxe5 {[%clk 0:00:25.3]} 34... Re2
{[%clk 0:02:09]} 35. Rf5 {[%clk 0:00:25.5]} 35... Re4 {[%clk 0:02:10.2]} 36. a5
{[%clk 0:00:21.6]} 36... Ra4 {[%clk 0:02:07.6]} 37. Ng4 {[%clk 0:00:19.3]} 37...
Rxa5 {[%clk 0:02:06.8]} 38. Nxh6+ {[%clk 0:00:17.1]} 38... Kg7 {[%clk
0:02:07.4]} 39. Ng4 {[%clk 0:00:17.9]} 39... Rc5 {[%clk 0:02:07.4]} 40. h4
{[%clk 0:00:17.7]} 40... Rc4 {[%clk 0:02:07.4]} 41. Rg5+ {[%clk 0:00:16.3]}
41... Kf7 {[%clk 0:02:08.7]} 42. h5 {[%clk 0:00:16.5]} 42... a5 {[%clk
0:02:10.2]} 43. h6 {[%clk 0:00:17.3]} 43... Rxc3 {[%clk 0:02:02]} 44. Rxd5
{[%clk 0:00:15.3]} 44... Rc4 {[%clk 0:02:01.5]} 45. Kg3 {[%clk 0:00:13.9]} 45...
Rc3+ {[%clk 0:02:00]} 46. Kh4 {[%clk 0:00:14.5]} 46... b6 {[%clk 0:02:01.5]} 47.
Rd7+ {[%clk 0:00:13.6]} 47... Kg6 {[%clk 0:02:02.9]} 48. Rg7+ {[%clk 0:00:13.6]}
48... Kf5 {[%clk 0:02:03.8]} 49. h7 {[%clk 0:00:14.2]} 49... Rc1 {[%clk
0:02:04.4]} 50. Kh3 {[%clk 0:00:11.7]} 50... Rc3+ {[%clk 0:02:02.1]} 51. g3
{[%clk 0:00:11.9]} 51... Rc1 {[%clk 0:01:59.7]} 52. h8=Q {[%clk 0:00:10.8]}
52... Rh1+ {[%clk 0:02:01.6]} 53. Nh2 {[%clk 0:00:11.4]} 53... Ke4 {[%clk
0:02:03.5]} 54. Qe8+ {[%clk 0:00:11.2]} 54... Kd3 {[%clk 0:02:03.8]} 55. Qd7+
{[%clk 0:00:11.8]} 55... Kc3 {[%clk 0:02:05.2]} 56. Qc6+ {[%clk 0:00:12.5]}
56... Kb4 {[%clk 0:02:06.7]} 57. Qxh1 {[%clk 0:00:13.4]} 57... Ka4 {[%clk
0:02:08.6]} 58. Rg4+ {[%clk 0:00:14.1]} 1-0

[Event "*** Titled Tuesday Blitz"]
[Site "Chess.com"]
[Date "2019.01.01"]
[Round "6"]
[White "GMWSO"]
[Black "Indianlad"]
[Result "0-1"]
[WhiteElo "2975"]
[BlackElo "2853"]
[TimeControl "180+2"]
[EndTime "14:25:41 PST"]
[Termination "Indianlad won by checkmate"]

1. d4 {[%clk 0:03:01.9]} 1... d5 {[%clk 0:02:58.9]} 2. c4 {[%clk 0:03:01.9]}
2... e6 {[%clk 0:03:00.2]} 3. Nc3 {[%clk 0:03:01.4]} 3... a6 {[%clk 0:02:58]} 4.
cxd5 {[%clk 0:02:58.7]} 4... exd5 {[%clk 0:02:59.9]} 5. Bf4 {[%clk 0:02:59.9]}
5... Nf6 {[%clk 0:03:00.1]} 6. e3 {[%clk 0:02:59.5]} 6... Bd6 {[%clk 0:03:01.2]}
7. Bxd6 {[%clk 0:02:52.4]} 7... Qxd6 {[%clk 0:03:01.6]} 8. Bd3 {[%clk
0:02:54.3]} 8... O-O {[%clk 0:03:02.2]} 9. Nge2 {[%clk 0:02:48.1]} 9... Re8
{[%clk 0:03:03]} 10. O-O {[%clk 0:02:48.1]} 10... Bg4 {[%clk 0:03:02]} 11. Qb3
{[%clk 0:02:47.1]} 11... Bxe2 {[%clk 0:02:54.3]} 12. Bxe2 {[%clk 0:02:49]} 12...
Nbd7 {[%clk 0:02:54.4]} 13. Bf3 {[%clk 0:02:39.4]} 13... c6 {[%clk 0:02:53.5]}
14. Rac1 {[%clk 0:02:35.9]} 14... h5 {[%clk 0:02:50.3]} 15. h4 {[%clk
0:02:32.8]} 15... Rab8 {[%clk 0:02:48.8]} 16. Ne2 {[%clk 0:02:29.9]} 16... g6
{[%clk 0:02:45.3]} 17. Nf4 {[%clk 0:02:29.4]} 17... Ne4 {[%clk 0:02:37.2]} 18.
Qc2 {[%clk 0:02:28.3]} 18... Ndf6 {[%clk 0:02:35.8]} 19. g3 {[%clk 0:02:29.2]}
19... Kg7 {[%clk 0:02:34.4]} 20. Kg2 {[%clk 0:02:27.9]} 20... Qd7 {[%clk
0:02:33.8]} 21. b4 {[%clk 0:02:27.3]} 21... Ng4 {[%clk 0:02:32.8]} 22. Rce1
{[%clk 0:02:14.1]} 22... Qf5 {[%clk 0:02:19.7]} 23. Qd1 {[%clk 0:02:00.4]} 23...
Ngf6 {[%clk 0:02:14.6]} 24. a4 {[%clk 0:01:57.1]} 24... Re7 {[%clk 0:02:07.1]}
25. b5 {[%clk 0:01:53.9]} 25... axb5 {[%clk 0:02:07.6]} 26. axb5 {[%clk
0:01:55.8]} 26... cxb5 {[%clk 0:02:00.6]} 27. Qd3 {[%clk 0:01:53.4]} 27... Rc8
{[%clk 0:01:57]} 28. Qxb5 {[%clk 0:01:44.7]} 28... Nd2 {[%clk 0:01:54.9]} 29.
Qb4 {[%clk 0:01:30.3]} 29... Nxf3 {[%clk 0:01:34.3]} 30. Qxe7 {[%clk 0:01:29.7]}
30... Re8 {[%clk 0:01:35.1]} 31. Qxb7 {[%clk 0:01:04.2]} 31... Qe4 {[%clk
0:01:31.9]} 32. Kh3 {[%clk 0:00:56.5]} 32... g5 {[%clk 0:01:12.8]} 33. hxg5
{[%clk 0:00:22.8]} 33... Nxg5+ {[%clk 0:01:13.6]} 34. Kh4 {[%clk 0:00:24.1]}
34... Qf5 {[%clk 0:01:05.8]} 35. Nxh5+ {[%clk 0:00:23.8]} 35... Nxh5 {[%clk
0:01:04.8]} 36. g4 {[%clk 0:00:25.2]} 36... Qf3 {[%clk 0:00:58.5]} 37. Qd7
{[%clk 0:00:08.1]} 37... Rh8 {[%clk 0:00:49.7]} 38. gxh5 {[%clk 0:00:04]} 38...
Rxh5# {[%clk 0:00:49.6]} 0-1

[Event "*** Titled Tuesday Blitz"]
[Site "Chess.com"]
[Date "2019.01.01"]
[Round "6"]
[White "MFBerna"]
[Black "MerdeNoms943"]
[Result "1-0"]
[WhiteElo "2330"]
[BlackElo "2251"]
[TimeControl "180+2"]
[EndTime "14:25:42 PST"]
[Termination "MFBerna won by checkmate"]

1. e4 {[%clk 0:03:01.9]} 1... d6 {[%clk 0:03:00.8]} 2. d4 {[%clk 0:03:02]} 2...
Nf6 {[%clk 0:03:02.3]} 3. Nc3 {[%clk 0:03:03.2]} 3... g6 {[%clk 0:03:03.2]} 4.
Nf3 {[%clk 0:03:03.8]} 4... Bg7 {[%clk 0:03:03.2]} 5. Be2 {[%clk 0:03:05.3]}
5... O-O {[%clk 0:03:02.7]} 6. O-O {[%clk 0:03:06.8]} 6... c6 {[%clk 0:03:03.5]}
7. Re1 {[%clk 0:03:03.1]} 7... Nbd7 {[%clk 0:02:57.3]} 8. e5 {[%clk 0:03:03]}
8... dxe5 {[%clk 0:02:46.3]} 9. dxe5 {[%clk 0:03:04.9]} 9... Ng4 {[%clk
0:02:46.7]} 10. e6 {[%clk 0:02:59.2]} 10... fxe6 {[%clk 0:02:47.9]} 11. Bg5
{[%clk 0:02:36.3]} 11... Qb6 {[%clk 0:02:32]} 12. Bh4 {[%clk 0:02:18.9]} 12...
Qxb2 {[%clk 0:02:27.8]} 13. Ne4 {[%clk 0:02:06.2]} 13... Qxa1 {[%clk 0:02:21.8]}
14. Qxa1 {[%clk 0:02:01.8]} 14... Bxa1 {[%clk 0:02:23.7]} 15. Rxa1 {[%clk
0:02:01]} 15... Ngf6 {[%clk 0:02:12.3]} 16. Neg5 {[%clk 0:01:43.1]} 16... Nb6
{[%clk 0:01:59.5]} 17. Ne5 {[%clk 0:01:30]} 17... Nfd5 {[%clk 0:01:50.8]} 18.
Bg3 {[%clk 0:01:15.2]} 18... Nf4 {[%clk 0:01:38.7]} 19. Bf1 {[%clk 0:01:08.9]}
19... Nd7 {[%clk 0:01:27.5]} 20. Ng4 {[%clk 0:00:31]} 20... Nc5 {[%clk
0:00:39.2]} 21. Rd1 {[%clk 0:00:23]} 21... Nd5 {[%clk 0:00:29.8]} 22. Be5 {[%clk
0:00:17.6]} 22... Nf6 {[%clk 0:00:28.4]} 23. Ne3 {[%clk 0:00:13.9]} 23... Nce4
{[%clk 0:00:26.8]} 24. Nf3 {[%clk 0:00:12.6]} 24... b6 {[%clk 0:00:19.4]} 25.
Bc4 {[%clk 0:00:12]} 25... Nd5 {[%clk 0:00:17.2]} 26. Ng4 {[%clk 0:00:11.6]}
26... Ndf6 {[%clk 0:00:15.8]} 27. Ne3 {[%clk 0:00:10.3]} 27... b5 {[%clk
0:00:17]} 28. Bb3 {[%clk 0:00:10]} 28... a5 {[%clk 0:00:18.5]} 29. a3 {[%clk
0:00:10.8]} 29... b4 {[%clk 0:00:17]} 30. axb4 {[%clk 0:00:10.7]} 30... axb4
{[%clk 0:00:18.9]} 31. Nd4 {[%clk 0:00:12.1]} 31... Bd7 {[%clk 0:00:17.9]} 32.
f3 {[%clk 0:00:10.6]} 32... Nc5 {[%clk 0:00:15.4]} 33. Bc4 {[%clk 0:00:11.8]}
33... Nd5 {[%clk 0:00:15.4]} 34. Ng4 {[%clk 0:00:11.2]} 34... Nc3 {[%clk
0:00:14.6]} 35. Nh6# {[%clk 0:00:11.3]} 1-0

[Event "*** Titled Tuesday Blitz"]
[Site "Chess.com"]
[Date "2019.01.01"]
[Round "6"]
[White "Mr_Penings"]
[Black "Justinz"]
[Result "0-1"]
[WhiteElo "2489"]
[BlackElo "2357"]
[TimeControl "180+2"]
[EndTime "14:25:42 PST"]
[Termination "Justinz won on time"]

1. c4 {[%clk 0:03:01]} 1... e5 {[%clk 0:02:56.9]} 2. e3 {[%clk 0:03:00.9]} 2...
Nc6 {[%clk 0:02:53.7]} 3. a3 {[%clk 0:03:01.8]} 3... Nf6 {[%clk 0:02:54.2]} 4.
Nc3 {[%clk 0:03:00.1]} 4... d5 {[%clk 0:02:54.9]} 5. cxd5 {[%clk 0:03:02]} 5...
Nxd5 {[%clk 0:02:56.8]} 6. Qc2 {[%clk 0:03:03.3]} 6... Be7 {[%clk 0:02:57.2]} 7.
Nf3 {[%clk 0:03:04.4]} 7... O-O {[%clk 0:02:58.1]} 8. h4 {[%clk 0:03:05.5]} 8...
Nb6 {[%clk 0:02:36.8]} 9. b4 {[%clk 0:02:57.4]} 9... a6 {[%clk 0:02:34.2]} 10.
Ng5 {[%clk 0:02:57.8]} 10... f5 {[%clk 0:02:33]} 11. Qb3+ {[%clk 0:02:52.9]}
11... Kh8 {[%clk 0:02:20.2]} 12. Nf7+ {[%clk 0:02:52.2]} 12... Rxf7 {[%clk
0:02:18.9]} 13. Qxf7 {[%clk 0:02:54.1]} 13... Bf6 {[%clk 0:02:15.7]} 14. h5
{[%clk 0:02:34.1]} 14... e4 {[%clk 0:02:13.3]} 15. h6 {[%clk 0:02:28.4]} 15...
g6 {[%clk 0:02:12.3]} 16. Bb2 {[%clk 0:02:28.2]} 16... Ne5 {[%clk 0:02:12.6]}
17. Qb3 {[%clk 0:02:07.1]} 17... Qd6 {[%clk 0:02:12]} 18. Be2 {[%clk 0:00:45.5]}
18... Be6 {[%clk 0:02:09.7]} 19. Qc2 {[%clk 0:00:46.1]} 19... Bc4 {[%clk
0:02:08.1]} 20. O-O {[%clk 0:00:37.2]} 20... Rd8 {[%clk 0:02:05.8]} 21. f4
{[%clk 0:00:25.1]} 21... Nd3 {[%clk 0:02:00.2]} 22. Rad1 {[%clk 0:00:25.7]}
22... Nxb2 {[%clk 0:01:57.7]} 23. Qxb2 {[%clk 0:00:26.8]} 23... Bxe2 {[%clk
0:01:58.4]} 24. Qa2 {[%clk 0:00:12.5]} 24... Bxf1 {[%clk 0:01:51.4]} 25. Qf7
{[%clk 0:00:13.5]} 25... Bd3 {[%clk 0:01:43.3]} 26. Rc1 {[%clk 0:00:12.4]} 26...
Qe7 {[%clk 0:01:42.1]} 27. Qb3 {[%clk 0:00:13.5]} 27... Nc4 {[%clk 0:01:40.2]}
28. Na4 {[%clk 0:00:10.3]} 28... b5 {[%clk 0:01:36.9]} 29. Nc5 {[%clk
0:00:11.2]} 29... Rd6 {[%clk 0:01:37.1]} 30. Nb7 {[%clk 0:00:12.1]} 30... Rb6
{[%clk 0:01:36.5]} 31. Nc5 {[%clk 0:00:13.5]} 31... g5 {[%clk 0:01:31.1]} 32. a4
{[%clk 0:00:12.8]} 32... gxf4 {[%clk 0:01:28.2]} 33. axb5 {[%clk 0:00:14.3]}
33... axb5 {[%clk 0:01:29]} 34. Qa2 {[%clk 0:00:15.8]} 34... Rb8 {[%clk
0:01:28.2]} 35. Qa7 {[%clk 0:00:16.6]} 35... Rg8 {[%clk 0:01:28.1]} 36. Qa6
{[%clk 0:00:08.7]} 36... fxe3 {[%clk 0:01:26.8]} 37. dxe3 {[%clk 0:00:09.1]}
37... f4 {[%clk 0:01:27.7]} 38. Nd7 {[%clk 0:00:07.9]} 38... Bb2 {[%clk
0:01:21.3]} 39. Re1 {[%clk 0:00:06.6]} 39... f3 {[%clk 0:01:19.4]} 40. g3 {[%clk
0:00:03.6]} 40... Rxg3+ {[%clk 0:01:18.8]} 0-1

[Event "*** Titled Tuesday Blitz"]
[Site "Chess.com"]
[Date "2019.01.01"]
[Round "6"]
[White "GremioPrudente"]
[Black "MikeSailer"]
[Result "1-0"]
[WhiteElo "2025"]
[BlackElo "2104"]
[TimeControl "180+2"]
[EndTime "14:25:48 PST"]
[Termination "GremioPrudente won by resignation"]

1. Nf3 {[%clk 0:03:01.9]} 1... d5 {[%clk 0:02:59.9]} 2. d4 {[%clk 0:03:02.2]}
2... Nf6 {[%clk 0:03:01.3]} 3. c4 {[%clk 0:03:02.3]} 3... c6 {[%clk 0:03:02.6]}
4. e3 {[%clk 0:03:01.9]} 4... a6 {[%clk 0:03:04]} 5. a4 {[%clk 0:02:57.1]} 5...
e6 {[%clk 0:02:55.2]} 6. Bd3 {[%clk 0:02:55.3]} 6... a5 {[%clk 0:02:44.8]} 7.
O-O {[%clk 0:02:54.2]} 7... Na6 {[%clk 0:02:43.4]} 8. Bd2 {[%clk 0:02:39]} 8...
Nb4 {[%clk 0:02:44]} 9. Bxb4 {[%clk 0:02:34.7]} 9... Bxb4 {[%clk 0:02:42]} 10.
Nc3 {[%clk 0:02:23.2]} 10... O-O {[%clk 0:02:42.5]} 11. Qc2 {[%clk 0:02:19.5]}
11... b6 {[%clk 0:02:34.6]} 12. Rfd1 {[%clk 0:02:13.9]} 12... Qe7 {[%clk
0:02:22.6]} 13. Ne5 {[%clk 0:02:12.2]} 13... Bb7 {[%clk 0:02:12.8]} 14. Rac1
{[%clk 0:01:50.1]} 14... Rac8 {[%clk 0:02:02.9]} 15. Qe2 {[%clk 0:01:37.7]}
15... Bxc3 {[%clk 0:01:39.5]} 16. Rxc3 {[%clk 0:01:33.5]} 16... dxc4 {[%clk
0:01:29.2]} 17. Bxc4 {[%clk 0:01:22.1]} 17... Ne4 {[%clk 0:01:15]} 18. Rc2
{[%clk 0:01:17]} 18... c5 {[%clk 0:01:11.5]} 19. dxc5 {[%clk 0:01:02.9]} 19...
Nxc5 {[%clk 0:01:12.5]} 20. b3 {[%clk 0:00:57.1]} 20... Rfd8 {[%clk 0:00:58]}
21. Rcd2 {[%clk 0:00:57.7]} 21... Rxd2 {[%clk 0:00:52.8]} 22. Qxd2 {[%clk
0:00:55.5]} 22... g6 {[%clk 0:00:31.4]} 23. Nd7 {[%clk 0:00:43.2]} 23... Rd8
{[%clk 0:00:09.5]} 24. Nf6+ {[%clk 0:00:43.2]} 24... Qxf6 {[%clk 0:00:08.2]} 25.
Qxd8+ {[%clk 0:00:44]} 25... Qxd8 {[%clk 0:00:09.6]} 26. Rxd8+ {[%clk
0:00:44.8]} 26... Kg7 {[%clk 0:00:09.5]} 27. Rb8 {[%clk 0:00:40.1]} 27... Kf6
{[%clk 0:00:07.9]} 28. f3 {[%clk 0:00:37.8]} 28... h5 {[%clk 0:00:08.5]} 29. h3
{[%clk 0:00:35.9]} 29... Ke7 {[%clk 0:00:08.1]} 30. Kf2 {[%clk 0:00:36.7]} 30...
Kd6 {[%clk 0:00:07]} 31. Ke2 {[%clk 0:00:37.2]} 31... Nd7 {[%clk 0:00:06.9]} 32.
Rxb7 {[%clk 0:00:37.3]} 32... Kc6 {[%clk 0:00:07]} 33. Ra7 {[%clk 0:00:32.2]}
33... Ne5 {[%clk 0:00:05.3]} 34. Bb5+ {[%clk 0:00:31.6]} 1-0